bitfinex/quotes_BTCUSD_20240820
["timestamp","ask_amount","ask_price","bid_price","bid_amount"]
[1724158775500,0.082806,60778.0,60777.0,1.45887736]
[1724158775707,0.082806,60778.0,60777.0,1.40194253]
[1724158775917,0.082806,60778.0,60777.0,1.4588771]
[1724158776434,0.082806,60778.0,60777.0,1.36009131]
[1724158777051,0.082806,60778.0,60777.0,1.36099851]
[1724158779239,0.082806,60778.0,60777.0,1.3609983]
[1724158779453,0.229406,60778.0,60777.0,1.43506859]
[1724158779675,0.229406,60778.0,60777.0,1.37813453]
[1724158779859,0.229406,60778.0,60777.0,1.4350695]
[1724158780604,0.229406,60778.0,60777.0,1.1718125]
[1724158780752,0.229406,60778.0,60777.0,1.1511092]
[1724158782013,0.229406,60778.0,60777.0,1.15108522]
[1724158783149,0.166006,60778.0,60777.0,1.15108522]
[1724158784273,0.166006,60778.0,60777.0,1.37811055]
[1724158784468,0.082806,60778.0,60777.0,1.41434222]
[1724158785295,0.082806,60778.0,60777.0,1.37811055]
[1724158785500,0.082806,60778.0,60777.0,1.4642783]
[1724158786065,0.082806,60778.0,60777.0,1.56303006]
[1724158786698,0.082806,60778.0,60777.0,1.4642783]
[1724158786839,0.082806,60778.0,60777.0,1.56300069]
[1724158787038,0.082806,60778.0,60777.0,1.4642783]
[1724158787501,0.082806,60778.0,60777.0,1.5629926]
[1724158787721,0.082806,60778.0,60777.0,1.56299126]
[1724158789628,0.082806,60778.0,60777.0,1.53831072]
[1724158790381,0.082806,60778.0,60777.0,1.56299126]
[1724158791392,0.082806,60778.0,60777.0,1.8262194]
[1724158791753,0.082806,60778.0,60777.0,1.58763741]
[1724158791959,0.082806,60778.0,60777.0,1.46426237]
[1724158792619,0.082806,60778.0,60777.0,1.46426051]
[1724158793460,0.082806,60778.0,60777.0,1.58758031]
[1724158794264,0.082806,60778.0,60777.0,1.58756306]
[1724158795059,0.082806,60778.0,60777.0,1.5513347]
[1724158795260,0.082806,60778.0,60777.0,1.5875632]
[1724158796156,0.082806,60778.0,60777.0,1.85080975]
[1724158799101,0.082806,60778.0,60777.0,1.58755275]
[1724158799519,0.082806,60778.0,60777.0,1.46424333]
[1724158800726,0.082806,60778.0,60777.0,1.72750034]
[1724158801649,0.002826,60778.0,60777.0,1.40124334]
[1724158801870,0.002826,60778.0,60777.0,1.34024334]
[1724158802103,0.002826,60778.0,60777.0,1.43887232]
[1724158802104,0.147826,60778.0,60777.0,1.43887232]
[1724158802276,0.147826,60778.0,60777.0,1.17561557]
[1724158802448,0.147826,60778.0,60777.0,0.67602838]
[1724158802652,0.147826,60778.0,60777.0,0.41277138]
[1724158803442,0.147826,60778.0,60777.0,0.67602838]
[1724158803813,0.167806,60778.0,60777.0,0.67602838]
[1724158805689,0.167806,60778.0,60777.0,0.41277138]
[1724158807297,0.167806,60778.0,60777.0,0.67602838]
[1724158813182,0.167806,60778.0,60777.0,0.0209075]
[1724158813183,0.49345978,60778.0,60777.0,0.0209075]
[1724158813388,1.14411017,60778.0,60777.0,0.0209075]
[1724158813595,1.40736317,60778.0,60777.0,0.0209075]
[1724158813799,1.45669434,60778.0,60777.0,0.0209075]
[1724158814179,1.45669434,60778.0,60777.0,0.0089075]
[1724158814180,1.45569434,60778.0,60777.0,0.0089075]
[1724158814406,1.40536317,60778.0,60777.0,0.0009075]
[1724158814622,1.42536317,60778.0,60777.0,0.0029075]
[1724158814745,1.41636317,60778.0,60777.0,0.0019075]
[1724158815113,1.43036317,60778.0,60777.0,0.0029075]
[1724158815706,1.43036317,60778.0,60777.0,0.0019075]
[1724158815916,0.49797817,60778.0,60777.0,0.0019075]
[1724158816118,0.51197817,60778.0,60777.0,0.0029075]
[1724158818351,0.48195337,60778.0,60777.0,0.0029075]
[1724158818563,0.38080898,60778.0,60777.0,0.0029075]
[1724158823511,0.38173332,60778.0,60777.0,0.0029075]
[1724158823751,0.88573332,60778.0,60777.0,0.0029075]
[1724158823963,0.1923,60766.0,60765.0,0.0009075]
[1724158824079,0.42100298,60766.0,60765.0,0.0009075]
[1724158824333,0.42832459,60766.0,60765.0,0.0009075]
[1724158824508,0.45224893,60766.0,60765.0,0.0009075]
[1724158824699,0.55424893,60766.0,60765.0,0.0009075]
[1724158825000,0.61479676,60766.0,60765.0,0.0009075]
[1724158825177,0.61579676,60766.0,60765.0,0.0009075]
[1724158825337,0.62187242,60766.0,60765.0,0.0019075]
[1724158825538,0.62187242,60766.0,60765.0,0.0009075]
[1724158825903,0.63587242,60766.0,60765.0,0.0019075]
[1724158826747,0.64566437,60766.0,60765.0,0.0019075]
[1724158826947,1.16466437,60766.0,60764.0,0.0009086]
[1724158827308,0.5964688,60765.0,60764.0,0.0009086]
[1724158827647,0.60863838,60765.0,60764.0,0.0009086]
[1724158827848,0.60863838,60765.0,60754.0,0.0009075]
[1724158827849,0.001,60757.0,60754.0,0.0009075]
[1724158828222,0.42422732,60755.0,60754.0,0.0009075]
[1724158828406,0.14042434,60754.0,60753.0,0.0009075]
[1724158828535,1.5069974,60754.0,60753.0,0.0009075]
[1724158828752,1.5299974,60754.0,60753.0,0.0009075]
[1724158828940,0.98159677,60754.0,60753.0,0.0009075]
[1724158829595,0.9815145,60754.0,60753.0,0.0009075]
[1724158830430,0.88044442,60754.0,60753.0,0.0009075]
[1724158830706,0.74037156,60754.0,60753.0,0.0009075]
[1724158830889,0.74037156,60754.0,60740.0,0.009075]
[1724158830890,0.4254,60741.0,60740.0,0.009075]
[1724158831087,0.71240298,60741.0,60740.0,0.009075]
[1724158831287,0.72382327,60741.0,60740.0,0.009075]
[1724158831489,0.79236353,60741.0,60740.0,0.009075]
[1724158831696,0.79428787,60741.0,60740.0,0.009075]
[1724158831903,0.7962056,60741.0,60740.0,0.009075]
[1724158832326,0.8102056,60741.0,60740.0,0.009075]
[1724158832505,0.79236353,60741.0,60740.0,0.009075]
[1724158832921,0.51086353,60741.0,60740.0,0.009075]
[1724158833496,0.50986353,60741.0,60740.0,0.009075]
[1724158833843,0.53886353,60741.0,60740.0,0.009075]
[1724158834243,0.57888353,60741.0,60740.0,0.009075]
[1724158834997,0.57788353,60741.0,60740.0,0.009075]
[1724158835608,0.57888353,60741.0,60740.0,0.009075]
[1724158835868,0.57788353,60741.0,60740.0,0.009075]
[1724158838900,0.5055012,60741.0,60740.0,0.009075]
[1724158839112,0.04759822,60741.0,60740.0,0.134575]
[1724158839320,0.04002,60741.0,60740.0,0.134575]
[1724158839520,0.05402,60741.0,60740.0,0.134575]
[1724158839720,0.06802,60741.0,60740.0,0.134575]
[1724158840135,0.05402,60741.0,60740.0,0.00915727]
[1724158840474,0.06002,60741.0,60740.0,0.00915727]
[1724158840881,0.06002,60741.0,60740.0,0.009075]
[1724158840882,0.31142298,60741.0,60740.0,0.009075]
[1724158841078,0.31442298,60741.0,60740.0,0.009075]
[1724158841269,0.34586528,60741.0,60740.0,0.009075]
[1724158841503,0.40626528,60741.0,60740.0,0.009075]
[1724158841906,0.41026528,60741.0,60740.0,0.009075]
[1724158842034,0.79176528,60741.0,60740.0,0.009075]
[1724158842241,0.80176528,60741.0,60740.0,0.009075]
[1724158842441,0.79176528,60741.0,60740.0,0.009075]
[1724158842641,0.78268962,60741.0,60740.0,0.009075]
[1724158842867,0.78176528,60741.0,60740.0,0.009075]
[1724158843041,0.79576528,60741.0,60740.0,0.009075]
[1724158843454,0.78176528,60741.0,60740.0,0.009075]
[1724158843844,0.79576528,60741.0,60740.0,0.009075]
[1724158844061,0.80676528,60741.0,60740.0,0.009075]
[1724158844457,0.82076528,60741.0,60740.0,0.009075]
[1724158844668,0.82360735,60741.0,60740.0,0.009075]
[1724158844924,0.82560735,60741.0,60740.0,6.6e-07]
[1724158845129,0.82176528,60741.0,60740.0,6.6e-07]
[1724158845587,0.80776528,60741.0,60740.0,6.6e-07]
[1724158845787,0.78660735,60741.0,60740.0,6.6e-07]
[1724158846005,1.98404762,60741.0,60740.0,6.6e-07]
[1724158846210,1.98596535,60741.0,60740.0,6.6e-07]
[1724158846412,1.97196535,60741.0,60740.0,6.6e-07]
[1724158846954,1.98212328,60741.0,60740.0,6.6e-07]
[1724158847398,1.99612328,60741.0,60740.0,6.6e-07]
[1724158847569,1.98404762,60741.0,60740.0,6.6e-07]
[1724158847728,1.99996535,60741.0,60740.0,6.6e-07]
[1724158848332,1.98596535,60741.0,60740.0,6.6e-07]
[1724158849360,1.99996535,60741.0,60740.0,6.6e-07]
[1724158849564,2.58337835,60741.0,60740.0,6.6e-07]
[1724158849780,2.68225835,60741.0,60740.0,6.6e-07]
[1724158850013,2.78229678,60741.0,60740.0,6.6e-07]
[1724158850559,2.76829678,60741.0,60740.0,6.6e-07]
[1724158850760,3.03170978,60741.0,60740.0,6.6e-07]
[1724158851009,3.04570978,60741.0,60740.0,6.6e-07]
[1724158851229,3.03170978,60741.0,60740.0,6.6e-07]
[1724158851398,0.46370007,60735.0,60734.0,0.009075]
[1724158851597,2.16738105,60735.0,60734.0,0.009075]
[1724158851756,2.53084518,60735.0,60734.0,0.009075]
[1724158851963,2.79428418,60735.0,60734.0,0.009075]
[1724158852360,0.13656807,60732.0,60731.0,0.0002]
[1724158852560,2.34557905,60732.0,60731.0,0.0002]
[1724158852763,0.40005307,60727.0,60717.0,0.009086]
[1724158852959,2.51857805,60727.0,60717.0,0.009086]
[1724158853203,2.68255683,60727.0,60717.0,0.009086]
[1724158853407,3.06791083,60727.0,60717.0,0.009086]
[1724158854560,3.16795919,60727.0,60717.0,0.009086]
[1724158855312,3.18195919,60727.0,60717.0,0.009086]
[1724158855766,0.99263707,60718.0,60717.0,0.009086]
[1724158855968,1.63774005,60718.0,60717.0,0.009086]
[1724158856173,1.90125305,60718.0,60717.0,0.009086]
[1724158856373,1.89741098,60718.0,60717.0,0.009086]
[1724158856907,2.44125305,60718.0,60717.0,0.009086]
[1724158857109,2.60523183,60718.0,60717.0,0.009086]
[1724158857532,2.70530169,60718.0,60717.0,0.009086]
[1724158858407,2.71545962,60718.0,60717.0,0.009086]
[1724158858634,2.45180169,60718.0,60717.0,0.009086]
[1724158858821,2.43395962,60718.0,60717.0,0.009086]
[1724158859050,1.60644662,60718.0,60717.0,0.009086]
[1724158859255,1.52137676,60718.0,60717.0,0.009086]
[1724158859385,1.45587676,60718.0,60717.0,0.009086]
[1724158859599,1.11476376,60718.0,60717.0,0.009086]
[1724158859803,0.32375898,60718.0,60717.0,0.009086]
[1724158860527,0.58727198,60718.0,60717.0,0.009086]
[1724158860682,0.57327198,60718.0,60717.0,0.009086]
[1724158861366,0.67327198,60718.0,60717.0,0.009086]
[1724158861782,0.29200298,60718.0,60717.0,0.009086]
[1724158861995,0.67327198,60718.0,60717.0,0.009086]
[1724158862143,0.95078498,60718.0,60717.0,0.009086]
[1724158862575,0.68727198,60718.0,60717.0,0.009086]
[1724158862753,0.55248618,60718.0,60717.0,0.009086]
[1724158862955,0.74727198,60718.0,60717.0,0.009086]
[1724158863161,0.77027198,60718.0,60717.0,0.009086]
[1724158864257,0.83625598,60718.0,60717.0,0.009086]
[1724158864614,1.09976898,60718.0,60717.0,0.009086]
[1724158864980,1.24086898,60718.0,60717.0,0.009086]
[1724158865172,1.39320588,60718.0,60717.0,0.009086]
[1724158865375,1.65771888,60718.0,60717.0,0.009086]
[1724158866088,1.92123188,60718.0,60717.0,0.009086]
[1724158866314,1.65771888,60718.0,60717.0,0.009086]
[1724158867135,1.64371888,60718.0,60717.0,0.009086]
[1724158867362,1.62971888,60718.0,60717.0,0.009086]
[1724158867714,1.64371888,60718.0,60717.0,0.009086]
[1724158867921,1.65771888,60718.0,60717.0,0.009086]
[1724158868118,1.64371888,60718.0,60717.0,0.009086]
[1724158868323,1.62971888,60718.0,60717.0,0.009086]
[1724158868525,1.65771888,60718.0,60717.0,0.009086]
[1724158873103,1.65771888,60718.0,60717.0,0.009086]
[1724158873709,1.65964322,60718.0,60717.0,0.009086]
[1724158873924,1.92507395,60718.0,60717.0,0.009086]
[1724158874335,2.02145514,60718.0,60717.0,0.009086]
[1724158874539,2.02529721,60718.0,60717.0,0.009086]
[1724158875604,2.02529721,60718.0,60717.0,6.6e-07]
[1724158876860,2.67129721,60718.0,60717.0,6.6e-07]
[1724158877063,3.04769021,60718.0,60717.0,6.6e-07]
[1724158877272,3.05951642,60718.0,60717.0,6.6e-07]
[1724158878144,3.07351642,60718.0,60717.0,6.6e-07]
[1724158878364,3.05951642,60718.0,60717.0,6.6e-07]
[1724158878578,3.04551642,60718.0,60717.0,6.6e-07]
[1724158878794,3.07351642,60718.0,60717.0,6.6e-07]
[1724158879007,3.24609869,60718.0,60717.0,6.6e-07]
[1724158879223,3.24701642,60718.0,60717.0,6.6e-07]
[1724158879451,1.45338834,60712.0,60701.0,0.078125]
[1724158879670,1.45338834,60712.0,60686.0,0.49229154]
[1724158879671,0.395439,60692.0,60686.0,0.49229154]
[1724158879894,2.23981998,60692.0,60686.0,0.49229154]
[1724158880106,2.23981998,60692.0,60679.0,0.009075]
[1724158880107,2.09757222,60692.0,60679.0,0.009075]
[1724158880321,2.31214083,60692.0,60679.0,0.009075]
[1724158880542,2.10139438,60692.0,60679.0,0.009075]
[1724158880765,2.09755231,60692.0,60679.0,0.009075]
[1724158881185,2.09947665,60692.0,60679.0,0.009075]
[1724158881465,2.10047665,60692.0,60679.0,0.009075]
[1724158881711,2.10139438,60692.0,60679.0,0.009075]
[1724158881899,2.11447665,60692.0,60679.0,0.009075]
[1724158882136,2.12555231,60692.0,60679.0,0.00915727]
[1724158882318,2.02629876,60692.0,60679.0,0.009075]
[1724158882932,2.03014083,60692.0,60679.0,0.009075]
[1724158883652,2.53014083,60692.0,60679.0,0.009075]
[1724158883858,2.79376683,60692.0,60679.0,0.009075]
[1724158884296,1.068173,60680.0,60679.0,0.009075]
[1724158884517,2.12367598,60680.0,60679.0,0.009075]
[1724158884715,1.87735398,60680.0,60679.0,0.009075]
[1724158884942,1.90327832,60680.0,60679.0,0.009075]
[1724158885344,1.90035398,60680.0,60679.0,0.009075]
[1724158885661,2.0942571,60680.0,60679.0,0.009075]
[1724158886044,2.09233276,60680.0,60679.0,0.009075]
[1724158886247,1.48255476,60680.0,60679.0,0.009075]
[1724158886440,1.76405476,60680.0,60679.0,0.009075]
[1724158886827,1.73605476,60680.0,60679.0,0.009075]
[1724158887027,0.922964,60674.0,60673.0,0.005]
[1724158887273,1.71307098,60674.0,60673.0,0.005]
[1724158887482,1.68221898,60674.0,60673.0,0.005]
[1724158887701,2.78681305,60674.0,60673.0,0.005]
[1724158887888,1.90297098,60674.0,60673.0,0.005]
[1724158888088,2.06694976,60674.0,60673.0,0.005]
[1724158888299,1.91914976,60674.0,60673.0,0.005]
[1724158889039,2.01604976,60674.0,60673.0,0.005]
[1724158890204,2.00204976,60674.0,60673.0,0.005]
[1724158890408,2.0179741,60674.0,60673.0,0.005]
[1724158890810,2.01989183,60674.0,60673.0,0.005]
[1724158890988,2.00589183,60674.0,60673.0,0.005]
[1724158891185,2.01989183,60674.0,60673.0,0.005]
[1724158891576,2.01989183,60674.0,60657.0,0.063]
[1724158891577,1.062023,60657.0,60656.0,0.009086]
[1724158891780,1.22602598,60657.0,60656.0,0.009086]
[1724158891993,1.24902598,60657.0,60656.0,0.009086]
[1724158892308,1.37420476,60657.0,60656.0,0.009086]
[1724158892510,0.68266998,60657.0,60656.0,0.072086]
[1724158892628,0.68266998,60657.0,60656.0,0.009086]
[1724158892629,1.00884798,60657.0,60656.0,0.009086]
[1724158892851,0.94644798,60657.0,60656.0,0.009086]
[1724158893312,1.29020598,60657.0,60656.0,0.009086]
[1724158893523,0.311869,60657.0,60656.0,0.072086]
[1724158893708,0.07998,60657.0,60656.0,0.072086]
[1724158894283,0.07998,60657.0,60656.0,0.235977]
[1724158894508,0.07998,60657.0,60656.0,0.76683804]
[1724158894740,0.09398,60657.0,60656.0,1.027323]
[1724158895284,0.07998,60657.0,60656.0,0.763541]
[1724158895713,0.08998,60657.0,60656.0,0.763541]
[1724158896115,0.08998,60657.0,60656.0,0.499759]
[1724158896755,0.08998,60657.0,60656.0,0.763541]
[1724158897223,0.07998,60657.0,60656.0,0.763541]
[1724158897403,0.07998,60657.0,60656.0,0.499759]
[1724158897627,0.07998,60657.0,60656.0,0.104086]
[1724158897849,0.475647,60657.0,60656.0,0.104086]
[1724158898064,0.95099268,60657.0,60656.0,0.104086]
[1724158898268,0.92642798,60657.0,60656.0,0.072086]
[1724158898643,0.218869,60657.0,60656.0,0.072086]
[1724158898883,0.08698,60657.0,60656.0,0.07216827]
[1724158899316,0.218869,60657.0,60656.0,0.07216827]
[1724158900238,0.07998,60657.0,60656.0,0.07216827]
[1724158900495,0.07998,60657.0,60656.0,0.23605927]
[1724158900694,0.07998,60657.0,60656.0,0.49984127]
[1724158900695,0.08698,60657.0,60656.0,0.49984127]
[1724158901324,0.08698,60657.0,60656.0,1.02740527]
[1724158901325,0.07998,60657.0,60656.0,1.02740527]
[1724158901843,0.08698,60657.0,60656.0,1.02740527]
[1724158902043,0.08698,60657.0,60656.0,0.76362327]
[1724158902162,0.07998,60657.0,60656.0,0.76362327]
[1724158903654,0.07998,60657.0,60656.0,1.02840527]
[1724158903972,0.07998,60657.0,60656.0,0.76462327]
[1724158904156,0.07998,60657.0,60656.0,0.76362327]
[1724158904373,0.07998,60657.0,60656.0,0.76462327]
[1724158905076,0.07998,60657.0,60656.0,1.02840527]
[1724158905741,0.07998,60657.0,60656.0,1.19240825]
[1724158906143,1e-08,60657.0,60656.0,1.19240825]
[1724158906842,1e-08,60657.0,60656.0,1.19232598]
[1724158907100,1e-08,60657.0,60656.0,1.19340825]
[1724158907304,1e-08,60657.0,60656.0,1.19440825]
[1724158907519,0.197873,60677.0,60672.0,0.131854]
[1724158907711,0.197871,60677.0,60676.0,8.227e-05]
[1724158907927,0.220871,60677.0,60676.0,8.227e-05]
[1724158908121,0.023,60677.0,60676.0,8.227e-05]
[1724158908331,0.086,60677.0,60676.0,8.227e-05]
[1724158908531,0.063,60677.0,60676.0,8.227e-05]
[1724158908682,0.458536,60677.0,60676.0,8.227e-05]
[1724158908878,0.472536,60677.0,60676.0,8.227e-05]
[1724158909236,0.277691,60677.0,60676.0,8.227e-05]
[1724158909404,0.131847,60676.0,60675.0,8.227e-05]
[1724158910645,0.130167,60676.0,60675.0,8.227e-05]
[1724158911234,0.130167,60676.0,60671.0,0.063]
[1724158911235,0.130167,60676.0,60674.0,8.227e-05]
[1724158911432,0.13185,60675.0,60674.0,8.227e-05]
[1724158912621,0.132675,60675.0,60674.0,8.227e-05]
[1724158913697,0.132675,60675.0,60674.0,0.00108227]
[1724158914116,0.132675,60675.0,60674.0,8.227e-05]
[1724158914117,0.396375,60675.0,60674.0,8.227e-05]
[1724158914490,0.406375,60675.0,60674.0,0.00108227]
[1724158915550,0.668395,60675.0,60674.0,0.001]
[1724158916471,0.140995,60675.0,60674.0,0.001]
[1724158916749,0.140995,60675.0,60674.0,0.00108227]
[1724158917865,0.010825,60675.0,60674.0,0.06408227]
[1724158918270,0.010825,60675.0,60674.0,0.49163827]
[1724158918478,0.010825,60675.0,60674.0,0.91934525]
[1724158918674,0.010825,60675.0,60674.0,1.18304925]
[1724158919096,0.010825,60675.0,60674.0,1.01904627]
[1724158920004,0.010825,60675.0,60674.0,1.01804627]
[1724158920205,0.000825,60675.0,60674.0,1.01804627]
[1724158920450,0.001825,60675.0,60674.0,1.02504627]
[1724158920861,0.131819,60689.0,60674.0,0.09508227]
[1724158921059,0.066011,60691.0,60690.0,8.227e-05]
[1724158921285,0.484456,60691.0,60690.0,8.227e-05]
[1724158921573,0.484456,60691.0,60688.0,8.227e-05]
[1724158921574,0.131818,60690.0,60688.0,8.227e-05]
[1724158921997,0.131818,60690.0,60689.0,8.227e-05]
[1724158922187,0.131819,60689.0,60688.0,8.227e-05]
[1724158922823,0.154816,60691.0,60688.0,8.227e-05]
[1724158923000,0.131819,60690.0,60688.0,8.227e-05]
[1724158923813,0.142819,60690.0,60688.0,0.00108227]
[1724158924611,0.011,60690.0,60689.0,0.263639]
[1724158924808,0.011,60690.0,60689.0,0.45854027]
[1724158925021,0.011,60690.0,60689.0,0.75417927]
[1724158925562,0.011825,60690.0,60689.0,1.01781827]
[1724158925942,0.010145,60690.0,60689.0,1.01781827]
[1724158926726,0.000825,60690.0,60689.0,1.01781827]
[1724158927089,0.000825,60690.0,60689.0,1.01881827]
[1724158927090,0.010825,60690.0,60689.0,1.01881827]
[1724158927308,0.010825,60690.0,60689.0,1.44646025]
[1724158927536,0.065993,60708.0,60707.0,0.13186227]
[1724158927834,0.49229154,60713.0,60712.0,8.227e-05]
[1724158928024,0.277647,60716.0,60713.0,8.227e-05]
[1724158928272,0.24390298,60716.0,60713.0,0.13184927]
[1724158928681,0.37066398,60716.0,60713.0,8.227e-05]
[1724158928881,0.131763,60715.0,60713.0,8.227e-05]
[1724158929206,0.23890298,60716.0,60715.0,8.227e-05]
[1724158929430,0.23890298,60716.0,60708.0,0.263554]
[1724158929431,0.23890298,60716.0,60709.0,8.227e-05]
[1724158929618,0.23890298,60716.0,60713.0,8.227e-05]
[1724158929842,0.066809,60718.0,60714.0,0.263529]
[1724158930022,0.066809,60718.0,60717.0,0.13184027]
[1724158930023,0.000826,60718.0,60717.0,0.13184027]
[1724158930221,0.000826,60718.0,60717.0,0.39535727]
[1724158930662,0.000826,60718.0,60717.0,0.65887427]
[1724158930856,0.000826,60718.0,60717.0,1.01159127]
[1724158931065,0.007406,60720.0,60719.0,0.65885227]
[1724158931317,0.007406,60720.0,60719.0,0.92236027]
[1724158933544,0.007406,60720.0,60719.0,0.65885227]
[1724158933757,0.139158,60720.0,60719.0,0.002]
[1724158933964,0.402662,60720.0,60719.0,0.002]
[1724158934167,0.485562,60720.0,60719.0,0.002]
[1724158934375,0.222058,60720.0,60719.0,0.002]
[1724158934577,0.131757,60718.0,60714.0,0.13184627]
[1724158934800,0.131757,60718.0,60714.0,0.13184527]
[1724158934801,0.131756,60718.0,60714.0,0.13184527]
[1724158935248,0.090306,60720.0,60717.0,8.227e-05]
[1724158935249,0.22206,60720.0,60717.0,8.227e-05]
[1724158935446,0.131754,60719.0,60718.0,8.227e-05]
[1724158936523,0.16400298,60719.0,60712.0,8.227e-05]
[1724158936730,0.131767,60713.0,60712.0,8.227e-05]
[1724158936930,0.131765,60715.0,60712.0,8.227e-05]
[1724158937185,0.263522,60716.0,60712.0,8.227e-05]
[1724158937385,0.131764,60715.0,60712.0,8.227e-05]
[1724158937802,0.131764,60715.0,60713.0,8.227e-05]
[1724158938009,0.131765,60714.0,60712.0,8.227e-05]
[1724158938258,0.154767,60713.0,60712.0,8.227e-05]
[1724158938669,0.154767,60713.0,60712.0,0.00108227]
[1724158939077,0.023,60713.0,60712.0,0.00108227]
[1724158939873,0.023,60713.0,60712.0,8.227e-05]
[1724158940204,0.023,60713.0,60712.0,0.00108227]
[1724158940707,0.023,60713.0,60712.0,8.227e-05]
[1724158940950,0.023,60713.0,60712.0,0.00108227]
[1724158941153,0.032,60713.0,60712.0,0.00108227]
[1724158941354,0.163767,60713.0,60712.0,0.001]
[1724158941667,0.242867,60713.0,60712.0,0.001]
[1724158943380,0.506401,60713.0,60712.0,0.001]
[1724158943781,0.506401,60713.0,60712.0,0.00108227]
[1724158943989,0.242867,60713.0,60712.0,0.00108227]
[1724158945400,0.242867,60713.0,60712.0,0.001]
[1724158945818,0.242867,60713.0,60712.0,0.00108227]
[1724158946577,0.506401,60713.0,60712.0,0.001]
[1724158947476,0.568701,60713.0,60712.0,0.001]
[1724158950220,0.568701,60713.0,60712.0,0.0019064]
[1724158950430,0.832235,60713.0,60712.0,0.0019064]
[1724158950921,0.832235,60713.0,60712.0,0.00098166]
[1724158951369,2.21928148,60713.0,60712.0,0.00098166]
[1724158951572,1.74928148,60713.0,60712.0,0.00098166]
[1724158951777,1.75028148,60713.0,60712.0,0.00098166]
[1724158952236,1.75028148,60713.0,60712.0,8e-08]
[1724158952439,1.84854023,60713.0,60712.0,8e-08]
[1724158952651,1.84754023,60713.0,60712.0,8e-08]
[1724158952893,1.62330598,60713.0,60712.0,8e-08]
[1724158953098,1.61430598,60713.0,60712.0,8e-08]
[1724158953298,1.62830598,60713.0,60712.0,0.00100008]
[1724158953511,1.36477198,60713.0,60712.0,0.00100008]
[1724158953866,1.35077198,60713.0,60712.0,8e-08]
[1724158954047,1.36477198,60713.0,60712.0,0.00100008]
[1724158954822,1.35077198,60713.0,60712.0,8e-08]
[1724158956006,1.51399918,60713.0,60712.0,8e-08]
[1724158956208,1.52799918,60713.0,60712.0,0.00100008]
[1724158956411,1.62620068,60713.0,60712.0,0.00100008]
[1724158956615,2.07620068,60713.0,60712.0,0.00100008]
[1724158956829,2.06220068,60713.0,60712.0,8e-08]
[1724158957033,2.06312502,60713.0,60712.0,8e-08]
[1724158957279,1.61312502,60713.0,60712.0,8e-08]
[1724158957974,1.62904275,60713.0,60712.0,8e-08]
[1724158958391,1.62720068,60713.0,60712.0,8e-08]
[1724158958694,1.89073468,60713.0,60712.0,8e-08]
[1724158959292,1.88973468,60713.0,60712.0,8e-08]
[1724158959492,1.61220068,60713.0,60712.0,8e-08]
[1724158959897,1.88973468,60713.0,60712.0,0.00100008]
[1724158960287,1.87573468,60713.0,60712.0,8e-08]
[1724158960484,1.61220068,60713.0,60712.0,8e-08]
[1724158960763,1.46297348,60713.0,60712.0,0.00100008]
[1724158967162,0.60383698,60713.0,60712.0,0.00100008]
[1724158967307,0.73560398,60713.0,60712.0,0.00100008]
[1724158967536,0.47206998,60713.0,60712.0,0.00108235]
[1724158968459,0.47206998,60713.0,60712.0,0.00100008]
[1724158968659,0.49506998,60713.0,60712.0,0.00100008]
[1724158969193,0.48106998,60713.0,60712.0,8e-08]
[1724158969320,0.014,60713.0,60712.0,0.00100008]
[1724158970331,0.145767,60713.0,60712.0,0.00100008]
[1724158970521,0.014,60713.0,60712.0,0.00108235]
[1724158970718,0.014,60713.0,60712.0,0.13285135]
[1724158971104,0.014,60713.0,60712.0,0.20085135]
[1724158971508,0.014,60713.0,60712.0,0.06908235]
[1724158971857,0.014,60713.0,60712.0,0.00100008]
[1724158972476,0.131763,60715.0,60712.0,8e-08]
[1724158972854,0.006,60713.0,60712.0,0.00100008]
[1724158973207,0.131763,60715.0,60712.0,8e-08]
[1724158973412,0.131763,60715.0,60714.0,8.227e-05]
[1724158973610,0.239763,60715.0,60714.0,8.227e-05]
[1724158974977,0.108,60715.0,60714.0,8.227e-05]
[1724158975195,0.1,60716.0,60714.0,0.13184727]
[1724158975401,0.1,60716.0,60715.0,8.227e-05]
[1724158975820,0.23176,60716.0,60715.0,8.227e-05]
[1724158976376,0.24076,60716.0,60715.0,8.227e-05]
[1724158976765,0.395289,60715.0,60714.0,0.001]
[1724158976953,0.209267,60713.0,60712.0,8e-08]
[1724158977358,0.537101,60713.0,60712.0,8e-08]
[1724158978328,1.07200098,60713.0,60712.0,8e-08]
[1724158978532,1.09500098,60713.0,60712.0,8e-08]
[1724158979165,0.98763798,60713.0,60712.0,8e-08]
[1724158979774,0.99763798,60713.0,60712.0,0.00100008]
[1724158980210,1.26117198,60713.0,60712.0,0.00100008]
[1724158984584,1.35937603,60713.0,60712.0,0.00100008]
[1724158984785,1.52335481,60713.0,60712.0,0.00100008]
[1724158985615,1.35937603,60713.0,60712.0,0.00100008]
[1724158986012,1.36920859,60713.0,60712.0,0.00100008]
[1724158986465,1.43520059,60713.0,60712.0,0.00100008]
[1724158988244,1.43602459,60713.0,60712.0,0.00100008]
[1724158989850,1.48525375,60713.0,60712.0,0.00100008]
[1724158990096,2.50276653,60713.0,60712.0,0.00100008]
[1724158990311,2.03738112,60713.0,60712.0,0.00100008]
[1724158990629,2.03738076,60713.0,60712.0,0.00100008]
[1724158991535,1.87340198,60713.0,60712.0,0.00100008]
[1724158991740,1.86340198,60713.0,60712.0,8e-08]
[1724158991941,1.86556942,60713.0,60712.0,8e-08]
[1724158992678,1.86557976,60713.0,60712.0,8e-08]
[1724158993007,1.52819203,60713.0,60712.0,8e-08]
[1724158993272,0.34102303,60713.0,60712.0,8e-08]
[1724158993532,0.57212798,60713.0,60712.0,8e-08]
[1724158993794,0.97986198,60713.0,60712.0,8e-08]
[1724158994738,1.07808668,60713.0,60712.0,8e-08]
[1724158994974,1.10108668,60713.0,60712.0,8e-08]
[1724158997441,1.36462068,60713.0,60712.0,8e-08]
[1724158998500,1.3837549,60713.0,60712.0,8e-08]
[1724158998716,1.4837549,60713.0,60712.0,8e-08]
[1724158998956,1.53300594,60713.0,60712.0,8e-08]
[1724158999598,1.4717549,60713.0,60712.0,8e-08]
[1724158999807,1.4847549,60713.0,60712.0,8e-08]
[1724159001188,1.4717549,60713.0,60712.0,8e-08]
[1724159001616,1.4857549,60713.0,60712.0,8e-08]
[1724159002180,1.54563684,60713.0,60712.0,8e-08]
[1724159002408,1.55963684,60713.0,60712.0,8e-08]
[1724159002836,1.4857549,60713.0,60712.0,8e-08]